Cogmind - Beta 14 @@@ ROGUE MODE // 2025.01.05 @ 19:44:56 Player: Derk Result: Self-destructed Performance ------------- Evolutions (6) 3000 Regions Visited (13) 2600 Robots Destroyed (95) 475 Value Destroyed (3241) 3241 Prototype IDs (19) 380 Alien Tech Used (1) 200 Bonus (1196) 1196 TOTAL SCORE: 11092 Bonus ------- High Alert Combat Kills 64 Follower Combat Kills 1251 Registered with UFD 300 Friendly Fire -419 Cogmind --------- Core Integrity 756/1150 Matter 233/300 Energy 13/265 System Corruption 0% Temperature Cool (0) Movement Hovering (66) Location -4/Factory Parts ------- > --- POWER (2) -------- Improved Ion Engine > --- PROPULSION (5) --- Centrium Wheel Improved Antigrav System Improved Gyrokinetic Inverter > --- UTILITY (9) ------ Medium Storage Unit Experimental Targeting Computer Improved Melee Analysis Suite Advanced Melee Analysis Suite Advanced Melee Analysis Suite Advanced Melee Analysis Suite Advanced Melee Analysis Suite Quantum Capacitor > --- WEAPON (3) ------- (None) > --- INVENTORY (10) --- Centrium Wheel Advanced Power Amplifier Improved Focal Shield Peak State ------------ > --- POWER ------------ Improved Ion Engine Light Antimatter Reactor > --- PROPULSION ------- Centrium Wheel Improved Antigrav System Improved Antigrav System Improved Antigrav System > --- UTILITY ---------- Medium Storage Unit Experimental Targeting Computer Improved Melee Analysis Suite Advanced Melee Analysis Suite Advanced Melee Analysis Suite Advanced Melee Analysis Suite Advanced Melee Analysis Suite Quantum Capacitor > --- WEAPON ----------- Heavy Disruptor Cannon Heavy Mace > --- INVENTORY -------- Centrium Wheel Improved Antigrav System Improved Antigrav System Improved Antigrav System Advanced Power Amplifier Improved Focal Shield [Rating: 103] Favorites ----------- Power Light Angular Momentum Engine Engine Light Angular Momentum Engine Power Core Nuclear Core Reactor Light Antimatter Reactor Propulsion Overtuned Scrapsphere Treads Light Treads Leg Aluminum Leg Wheel Overtuned Scrapsphere Hover Unit Improved Antigrav System Utility Huge Storage Unit Device Advanced Heat Sink Storage Huge Storage Unit Processor Spectral Analyzer Protection Light Armor Plating Weapon Overtuned Pulse Rifle Energy Gun Overtuned Pulse Rifle Energy Cannon Heavy Particle Cannon Ballistic Gun Light Assault Rifle Ballistic Cannon Magnetic Acceleration Cannon Launcher Proton Missile Launcher Special Weapon CPS Tube Impact Weapon Heavy Mace Slashing Weapon Chainsword Build | -11 -10 -10 -8 -8 -6 -6 -6 -6 -5 -5 -5 -5 -4 ------- Run | Yrd Mat Sub Rec Scr Fac Low Low Zio Pro Fac Upp Upp Fac Slots Evolved 12 | . . . . . 8 . . . . 2 . . 2 Power 1 | . . . . . 1 . . . . . . . . Propulsion 3 | . . . . . 2 . . . . . . . 1 Utility 7 | . . . . . 4 . . . . 2 . . 1 Weapon 1 | . . . . . 1 . . . . . . . . Parts Attached 185 | 8 19 13 2 2 35 10 9 10 8 23 6 9 31 Power 19 | 2 1 . . 1 4 . 1 . . 4 1 1 4 Engine 7 | 2 1 . . . 1 . . . . 1 . . 2 Core 11 | . . . . 1 3 . 1 . . 3 1 1 1 Reactor 1 | . . . . . . . . . . . . . 1 Propulsion 48 | 2 12 10 . 1 7 . . . . 2 . . 14 Treads 11 | 2 5 4 . . . . . . . . . . . Leg 2 | . . 2 . . . . . . . . . . . Wheel 26 | . 7 4 . 1 7 . . . . 2 . . 5 Hover 9 | . . . . . . . . . . . . . 9 Flight . | . . . . . . . . . . . . . . Utility 56 | 2 1 . 1 . 12 3 4 6 3 9 2 3 10 Device 31 | 1 . . . . 8 2 4 4 2 5 1 1 3 Storage 4 | 1 1 . . . . . . 1 . . . . 1 Processor 10 | . . . . . 2 . . . . 1 1 . 6 Hackware . | . . . . . . . . . . . . . . Protection 11 | . . . 1 . 2 1 . 1 1 3 . 2 . Artifact . | . . . . . . . . . . . . . . Weapon 62 | 2 5 3 1 . 12 7 4 4 5 8 3 5 3 Energy Gun 15 | 2 . 1 . . 4 4 . 2 . 1 . 1 . Energy Cannon 8 | . 1 . 1 . 1 . . . . 1 2 1 1 Ballistic Gun 10 | . 2 2 . . 1 . . . 2 3 . . . Ballistic Cannon 1 | . . . . . 1 . . . . . . . . Launcher 12 | . . . . . 2 2 3 . 1 2 . 2 . Special Weapon 5 | . 2 . . . . . . 1 . . . 1 1 Impact Weapon 1 | . . . . . . . . . . . . . 1 Slashing Weapon 10 | . . . . . 3 1 1 1 2 1 1 . . Piercing Weapon . | . . . . . . . . . . . . . . Special Melee Weapon . | . . . . . . . . . . . . . . Unidentified Prototypes 6 | . . . . . 1 . 1 1 1 . 1 . 1 Corrupted Parts 2 | . . . . . . . . . 1 . 1 . . System Corruption 3 | . . . . . . . . . 1 . 2 . . Parts Lost 57 | . 1 6 . . 8 . . . 1 16 . 14 11 Power 12 | . 1 1 . . 1 . . . . 4 . 3 2 Propulsion 12 | . . 3 . . . . . . . 1 . 3 5 Utility 14 | . . . . . 4 . . . . 4 . 4 2 Weapon 19 | . . 2 . . 3 . . . 1 7 . 4 2 Highest Loss Streak 14 | . 1 6 . . 6 . . . 1 9 . 14 8 To Critical Strikes . | . . . . . . . . . . . . . . Average Slot Usage (%) 82 | . 99 96 85 80 78 85 84 80 83 81 77 73 68 Engine 4 | . 13 11 . . 1 6 6 6 6 3 . . 2 Core 5 | . . . . 4 10 6 6 6 6 4 7 8 . Wheel 19 | . 25 20 28 18 15 20 20 20 20 17 17 12 10 Device 10 | . 14 14 . . 10 15 16 13 18 12 5 5 3 Storage 7 | . 14 14 14 14 6 6 6 5 6 5 5 4 3 Processor 6 | . . . . . 7 6 6 6 6 11 14 15 24 Protection 5 | . . . 13 14 6 4 1 4 1 8 11 9 . Energy Gun 6 | . 9 3 . . 5 12 13 8 8 3 . . . Energy Cannon 3 | . 4 8 8 14 2 . . . . . 2 3 . Ballistic Gun 4 | . 13 16 19 14 2 . . . 3 2 . . . Slashing Weapon 3 | . . . . . 4 5 5 5 4 4 7 8 . Peak Build Rating 103 | 8 8 9 10 29 79 78 84 80 81 91 92 92 103 Average Rating 58 | 6 7 7 9 19 67 74 76 73 77 81 82 74 71 On Entrance 44 | . 8 8 7 10 29 75 75 75 76 80 79 92 2 Naked Turns 19 | . . . . . . . . . . . . 13 6 Heaviest Build 128 | 15 89 88 90 97 123 122 122 117 118 128 124 124 52 Greatest Support 80 | 40 40 40 20 28 56 36 36 36 36 38 38 18 80 Greatest Overweight (x) 36 | 2 3 8 4 4 3 3 36 3 3 12 12 13 2 Average Overweight (x) 3 | . 2 3 4 3 1 2 5 2 3 4 5 4 . Largest Inventory Capacity 25 | 8 25 25 25 25 25 25 25 25 25 25 25 25 10 Average Capacity 23 | 7 23 25 25 25 25 25 25 23 25 25 25 22 8 Most Carried 25 | 8 15 17 16 25 25 25 25 25 25 23 25 25 10 Average Carried 21 | 5 12 14 14 22 23 24 24 19 23 21 23 22 6 Final Capacity 25 | 8 25 25 25 25 25 25 25 25 25 25 25 5 10 Final Carried 25 | 8 15 12 16 25 25 24 25 21 24 21 25 5 3 Class Distribution -------------------- 46% | Scavenger-Scrapper 37% | Mutant 14% | Scavenger-Mutant Dominant Class ---------------- Mutant | -10/Materials Mutant | -10/Subcaves Mutant | -8/Recycling Mutant | -8/Scraptown Mutant | -6/Factory Scavenger-Scrapper | -6/Lower Caves Scavenger-Scrapper | -6/Lower Caves Scavenger-Scrapper | -6/Zion Scavenger-Scrapper | -5/Proximity Caves Scavenger-Mutant | -5/Factory Scavenger-Mutant | -5/Upper Caves Scavenger-Mutant | -5/Upper Caves Mutant | -4/Factory Resources | -11 -10 -10 -8 -8 -6 -6 -6 -6 -5 -5 -5 -5 -4 ----------- Run | Yrd Mat Sub Rec Scr Fac Low Low Zio Pro Fac Upp Upp Fac Matter Collected 5959 | 280 90 95 182 172 1506 135 1115 1503 145 364 141 . 231 Remotely 778 | . . . . . 10 . 768 . . . . . . Salvage Created 4371 | 122 166 115 56 . 1334 629 234 . 142 884 55 222 412 Parts 208 | 10 16 7 2 . 62 18 6 . 4 58 5 11 9 Haulers Intercepted . | . . . . . . . . . . . . . . Recyclers Shooed 1 | . . . . . . . . . . 1 . . . Parts Field Recycled . | . . . . . . . . . . . . . . Retrieved Matter . | . . . . . . . . . . . . . . Parts Self-Destructed 55 | . . 7 . . . 14 5 1 20 . 2 6 . Prevented 12 | . . . . . . 5 3 . . . . 4 . Kills | -11 -10 -10 -8 -8 -6 -6 -6 -6 -5 -5 -5 -5 -4 ------- Run | Yrd Mat Sub Rec Scr Fac Low Low Zio Pro Fac Upp Upp Fac Combat Hostiles Destroyed 65 | . 7 4 1 . 12 11 4 . 3 11 1 4 7 Melee 8 | . . . . . 4 1 . . . 1 . . 2 Guns 23 | . 6 3 . . 1 5 1 . 3 4 . . . Cannons 8 | . . 1 1 . 3 . . . . . 1 1 1 AOE 14 | . . . . . 2 4 1 . . 5 . 2 . Classes Destroyed 17 | 2 4 1 1 . 4 2 . . . 1 . . 2 Worker 9 | . . . . . 6 . . . . 3 . . . Builder 7 | . 1 . . . 1 . . . . 5 . . . Tunneler 3 | 3 . . . . . . . . . . . . . Recycler 6 | 1 . . . . 3 . . . . 1 . . 1 Mechanic 1 | . . . . . . . . . . 1 . . . Turret 2 | . . 2 . . . . . . . . . . . Watcher 1 | . 1 . . . . . . . . . . . . Swarmer 17 | . 6 4 . . . 2 . . 1 . . 1 3 Cutter 1 | . . . . . . . . . . . . . 1 Grunt 26 | . 1 . . . 6 4 3 . 2 7 . 1 2 Brawler 3 | . . . . . . 3 . . . . . . . Duelist 1 | . . . . . . . . . . . . . 1 Sentry 2 | . . . 1 . . 1 . . . . . . . Hunter 7 | . . . . . 4 . . . . 1 . 2 . Programmer 7 | . . . . . 2 . 1 . . 3 1 . . Scrapoid 1 | . . . . . 1 . . . . . . . . Mutant 1 | . . . . . . 1 . . . . . . . Best Kill Streak 7 | 2 5 4 1 . 4 4 2 . 2 7 1 3 3 Combat Bots Only 5 | . 5 4 1 . 4 4 2 . 2 4 1 3 3 Max Kills in Single Turn 2 | 1 1 1 1 . 2 1 1 . 1 2 1 1 1 Gunslinging . | . . . . . . . . . . . . . . Exploded 2 | . . . . . 2 1 1 . . 1 . 1 . Melee 1 | . . . . . 1 1 . . . 1 . . 1 Uniques/NPCs Destroyed . | . . . . . . . . . . . . . . Combat | -11 -10 -10 -8 -8 -6 -6 -6 -6 -5 -5 -5 -5 -4 -------- Run | Yrd Mat Sub Rec Scr Fac Low Low Zio Pro Fac Upp Upp Fac Hostile Shots Fired 853 | . 54 157 6 . 132 35 16 . 22 156 6 144 125 Missed 267 | . 12 64 1 . 39 11 4 . 8 47 1 42 38 Damage Taken 9323 | . 347 615 78 . 1339 543 202 . 349 2179 99 1869 1703 Core 1591 | . 106 119 . . 87 150 . . 32 179 . 524 394 Absorbed by Shields 220 | . . . . . 220 . . . . . . . . Ignored by Resistances 25 | . . . . . 9 . . . . . . 16 . Regen/Repaired (Parts) 86 | . . . . . 58 9 13 3 . 3 . . . Core Remaining (%) 51 | 100 . . . 10 . . . . 68 . . 29 . Volleys Fired 260 | 22 27 25 4 . 51 24 13 1 15 57 2 13 6 Largest 3 | 2 2 2 2 . 3 2 2 1 2 2 1 2 1 Hottest 160 | 90 100 80 95 . 160 160 160 . 160 112 35 130 110 Shots Fired 406 | 25 51 48 8 . 66 41 23 1 27 93 3 14 6 Gun 321 | 25 44 46 4 . 40 34 20 . 26 80 . 2 . Cannon 49 | . 5 2 4 . 19 . . . . 3 3 8 5 Launcher 31 | . . . . . 7 7 3 . 1 10 . 3 . Special 5 | . 2 . . . . . . 1 . . . 1 1 Kinetic 129 | . 24 36 4 . 21 . . . 7 37 . . . Thermal 209 | 22 27 2 4 . 29 34 20 . 19 38 3 11 . Explosive 7 | . . . . . 2 . . . 1 4 . . . Electromagnetic 59 | 3 . 10 . . 14 7 3 . . 14 . 3 5 Robot Hit Streak 24 | 3 9 5 6 . 5 24 9 5 5 8 2 7 1 Robot Miss Streak 5 | 3 4 2 1 . 5 1 1 . 2 3 . 2 5 Penetration Max 1 | . . . . . . . . . . 1 . . . Secondary Targets 6 | . 1 1 . . . 2 . . 1 1 . . . Max Gunslinging Chain 1 | . 1 1 . . . 1 . . 1 1 . . . Capacitor 5 | . . . . . . . . . . . . . 5 Shots Hit Robots 294 | 13 25 26 6 . 56 38 18 1 17 64 3 10 17 Core Hits 146 | 5 11 11 1 . 26 22 7 . 7 39 2 10 5 Critical Kills 1 | . 1 . . . . . . . . . . . . Critical Parts Destroyed 4 | . . . . . 1 . . . . 1 . . 2 Critical Strikes 21 | 1 2 1 . . 5 1 5 . . 4 . . 2 Burn 8 | 1 1 . . . . 1 5 . . . . . . Meltdown 1 | . 1 . . . . . . . . . . . . Destroy 2 | . . . . . 1 . . . . 1 . . . Blast 1 | . . . . . 1 . . . . . . . . Corrupt 1 | . . 1 . . . . . . . . . . . Smash 2 | . . . . . . . . . . . . . 2 Sever 6 | . . . . . 3 . . . . 3 . . . Melee Attacks 105 | . . . . . 36 6 3 1 6 25 1 . 27 Impact 27 | . . . . . . . . . . . . . 27 Slashing 78 | . . . . . 36 6 3 1 6 25 1 . . Piercing . | . . . . . . . . . . . . . . Sneak Attacks 19 | . . . . . 13 . . . . 5 . . 1 Combat Hostiles 1 | . . . . . 1 . . . . . . . . Follow-up Attacks . | . . . . . . . . . . . . . . Damage Inflicted 10147 | 155 281 238 98 . 2611 1290 609 . 501 2696 113 605 950 Guns 3780 | 155 247 219 23 . 452 650 409 . 383 1209 . 33 . Cannons 894 | . 34 19 75 . 375 . . . . 64 82 189 56 Explosions 2514 | . . . . . 353 570 200 . 118 901 . 372 . Melee 2868 | . . . . . 1358 70 . . . 522 31 . 887 Ramming 80 | . . . . . 73 . . . . . . . 7 Kinetic 1323 | . 91 148 23 . 344 . . . 90 627 . . . Thermal 3134 | 127 190 19 75 . 312 750 409 . 293 644 82 233 . Explosive 748 | . . . . . 172 . . . 118 458 . . . Electromagnetic 1994 | 28 . 71 . . 352 470 200 . . 445 . 372 56 Impact 887 | . . . . . . . . . . . . . 887 Slashing 1981 | . . . . . 1358 70 . . . 522 31 . . Piercing . | . . . . . . . . . . . . . . Highest Corruption 16 | . 2 2 2 . 4 4 . . 1 16 16 9 . Average Corruption 4 | . 1 2 2 . 2 2 . . 1 9 7 8 . Corruption Purged 14 | . . . . . . 4 . . . . 10 . . Corruption Blocked . | . . . . . . . . . . . . . . Effects 85 | . 4 3 9 . 14 2 . . 2 25 22 4 . Message Errors 23 | . 2 1 2 . 3 . . . . 6 7 2 . Matter Fused 12 | . . . . . 3 . . . 1 1 6 1 . Heat Flow Errors 11 | . . . 1 . 2 . . . . 5 2 1 . Energy Discharges 9 | . . . 3 . 1 1 . . . 1 3 . . Parts Rejected 2 | . . . . . . . . . . 2 . . . Parts Fused 1 | . . . . . . . . . . . 1 . . Data Loss (minor) 12 | . 1 1 2 . 3 . . . 1 3 1 . . Data Loss (major) 4 | . . 1 . . . . . . . 2 1 . . Misfires 3 | . . . . . 1 . . . . 2 . . . Alerts 3 | . . . 1 . . 1 . . . . 1 . . Weapon Failures 5 | . 1 . . . 1 . . . . 3 . . . Overload Shots . | . . . . . . . . . . . . . . Overflow Damage 640 | . . . . . 250 23 . . . 76 . 78 213 Projectiles 21 | . . . . . . . . . . . . 21 . Explosions 117 | . . . . . 3 23 . . . 34 . 57 . Melee 502 | . . . . . 247 . . . . 42 . . 213 Knockbacks 6 | . . . . . 1 . . . . . . . 5 Impact 4 | . . . . . . . . . . . . . 4 Kinetic 1 | . . . . . 1 . . . . . . . . Secondary 1 | . . . . . . . . . . . . . 1 Self-Inflicted Damage 231 | . . . . . 36 19 . . 33 69 . 71 3 Shots 8 | . . . . . . 2 . . 1 2 . 3 . Rammed 2 | . . . . . 1 . . . . . . . 1 Targets Rammed 2 | . . . . . 1 . . . . . . . 1 Kicked . | . . . . . . . . . . . . . . Crushed . | . . . . . . . . . . . . . . Highest Temperature 527 | 90 100 10 275 . 434 527 258 . 257 243 251 232 313 Average Temperature 106 | 39 34 4 114 . 134 188 120 . 96 84 103 68 178 Received Heat Transfer 2011 | . 12 438 27 . 165 226 45 . 99 372 . 378 249 Effects 9 | . . . 2 . 3 3 . . . . . . 1 Shutdowns 4 | . . . . . 2 2 . . . . . . . Interference 4 | . . . 2 . 1 . . . . . . . 1 Damage (core) 1 | . . . . . . 1 . . . . . . . Siege Activations . | . . . . . . . . . . . . . . Robots Corrupted 8 | . . . . . 2 1 . . . 1 . . 4 Combat Hostiles 8 | . . . . . 2 1 . . . 1 . . 4 Parts Fried 11 | . . . . . 4 . . . . 4 . . 3 Impact Corruptions 9 | . . . . . 1 . . . . . . . 8 Robots Melted 4 | . 1 . . . . . 2 . . . . 1 . Combat Hostiles 4 | . 1 . . . . . 2 . . . . 1 . Parts Melted 14 | 2 2 . . . . 3 2 . . 2 . 3 . Heat Transferred 6679 | 444 592 37 111 . 457 1700 1350 . 520 914 100 454 . Parts Sabotaged . | . . . . . . . . . . . . . . Parts Stolen . | . . . . . . . . . . . . . . Parts Stripped . | . . . . . . . . . . . . . . Power Chain Reactions 7 | . . . . . . 2 . . . 3 . 2 . Alert | -11 -10 -10 -8 -8 -6 -6 -6 -6 -5 -5 -5 -5 -4 ------- Run | Yrd Mat Sub Rec Scr Fac Low Low Zio Pro Fac Upp Upp Fac Peak Influence 545 | 20 202 . 273 . 460 . . . . 545 . . 138 Initial 247 | . 13 . 247 . . . . . . 86 . . 21 Average 133 | 7 56 . 206 . 84 . . . . 307 . . 47 Maximum Alert Level 2 | . 1 . 1 . 2 . . . . 2 . . . Low Security (%) 71 | 100 97 . 25 . 88 . . . . 26 . . 100 Level 1 21 | . 2 . 74 . 4 . . . . 52 . . . Level 2 6 | . . . . . 7 . . . . 20 . . . Level 3 . | . . . . . . . . . . . . . . Level 4 . | . . . . . . . . . . . . . . Level 5 . | . . . . . . . . . . . . . . High Security . | . . . . . . . . . . . . . . Max Security . | . . . . . . . . . . . . . . Squads Dispatched 18 | . 1 . . . 7 . . . . 7 . . 3 Investigation 5 | . . . . . 3 . . . . 1 . . 1 Extermination 4 | . . . . . 2 . . . . 1 . . 1 Reinforcement 6 | . 1 . . . 2 . . . . 2 . . 1 Assault . | . . . . . . . . . . . . . . Garrison 3 | . . . . . . . . . . 3 . . . Intercept . | . . . . . . . . . . . . . . Searches Triggered . | . . . . . . . . . . . . . . Construction Impeded 1 | . . . . . . . . . . 1 . . . Haulers Reinforced 2 | . . . . . 1 . . . . 1 . . . Active Scanning Responses . | . . . . . . . . . . . . . . Cargo Convoy Interrupts . | . . . . . . . . . . . . . . Stealth | -11 -10 -10 -8 -8 -6 -6 -6 -6 -5 -5 -5 -5 -4 --------- Run | Yrd Mat Sub Rec Scr Fac Low Low Zio Pro Fac Upp Upp Fac Distress Signals 4 | . 1 . . . 2 . . . . . . . 1 Communications Jammed . | . . . . . . . . . . . . . . Distress Signals . | . . . . . . . . . . . . . . Times Spotted 160 | . 11 30 1 . 22 14 9 . 17 25 1 9 21 Peak Tracking Total 9 | . 4 6 1 . 5 5 4 . 7 5 1 8 9 Tactical Retreats 13 | . . 4 . . . 1 . . . 4 . 1 3 Traps | -11 -10 -10 -8 -8 -6 -6 -6 -6 -5 -5 -5 -5 -4 ------- Run | Yrd Mat Sub Rec Scr Fac Low Low Zio Pro Fac Upp Upp Fac Traps Triggered 13 | . 2 . . . 6 . . . . 5 . . . Indirectly 3 | . . . . . . . . . . 3 . . . Trap Hack Attempts . | . . . . . . . . . . . . . . Triggered . | . . . . . . . . . . . . . . Disarmed . | . . . . . . . . . . . . . . Reprogrammed . | . . . . . . . . . . . . . . Reused . | . . . . . . . . . . . . . . Traps Extracted . | . . . . . . . . . . . . . . Installed . | . . . . . . . . . . . . . . Triggered 6 | . . . . . . . . . . . . 3 3 Most Traps Carried 2 | . . . . 2 2 2 2 2 2 2 2 2 . Machines | -11 -10 -10 -8 -8 -6 -6 -6 -6 -5 -5 -5 -5 -4 ---------- Run | Yrd Mat Sub Rec Scr Fac Low Low Zio Pro Fac Upp Upp Fac Machines Disabled 12 | . . 1 . . 3 2 . . 1 4 . 1 . Max in Single Turn 1 | . . 1 . . . 1 . . 1 1 . 1 . Machines Repaired . | . . . . . . . . . . . . . . Machines Dismantled . | . . . . . . . . . . . . . . Machines Sabotaged . | . . . . . . . . . . . . . . Overloaded Fab Kills . | . . . . . . . . . . . . . . Hacking | -11 -10 -10 -8 -8 -6 -6 -6 -6 -5 -5 -5 -5 -4 --------- Run | Yrd Mat Sub Rec Scr Fac Low Low Zio Pro Fac Upp Upp Fac Machines Accessed 36 | . 5 . 4 4 11 . 4 . 1 3 1 . 3 Terminals 18 | . 5 . 4 . 6 . 1 . . . . . 2 Fabricators 1 | . . . . . 1 . . . . . . . . Repair Stations 2 | . . . . . 2 . . . . . . . . Recycling Units 4 | . . . . . 2 . . . . 2 . . . Scanalyzers . | . . . . . . . . . . . . . . Garrison Access 2 | . . . . . . . . . . 1 . . 1 Total Hacks 86 | . 16 . 12 14 23 . 9 . 1 5 1 . 5 Successful 55 | . 8 . 7 14 11 . 9 . 1 1 1 . 3 Failed 31 | . 8 . 5 . 12 . . . . 4 . . 2 Catastrophic 10 | . 2 . 1 . 4 . . . . 2 . . 1 Database Lockouts . | . . . . . . . . . . . . . . Manual 33 | . 8 . 8 . 10 . . 1 . 4 . . 2 Terminals 47 | . 16 . 12 . 14 . 1 . . . . . 4 Fabricators 2 | . . . . . 2 . . . . . . . . Repair Stations 4 | . . . . . 4 . . . . . . . . Recycling Units 7 | . . . . . 3 . . . . 4 . . . Scanalyzers . | . . . . . . . . . . . . . . Garrison Access 2 | . . . . . . . . . . 1 . . 1 Terminal Hacks 42 | . 6 . 5 14 5 . 9 . 1 . 1 . 1 Record 21 | . . . . 13 . . 7 . 1 . . . . Part Schematic 1 | . . . 1 . . . . . . . . . . Robot Analysis 2 | . 2 . . . . . . . . . . . . Open Door 3 | . . . . . . . 2 . . . 1 . . Branch Access Points 2 | . . . 1 . 1 . . . . . . . . Emergency Access Points 1 | . 1 . . . . . . . . . . . . Recycling Unit Index 1 | . . . . . 1 . . . . . . . . Locate Traps 3 | . 1 . . . 2 . . . . . . . . Hauler Manifests 1 | . 1 . . . . . . . . . . . . Zone Layout 6 | . 1 . 3 . 1 . . . . . . . 1 Derelict Proto ID Bank 1 | . . . . 1 . . . . . . . . . Fabricator Hacks . | . . . . . . . . . . . . . . Repair Station Hacks 2 | . . . . . 2 . . . . . . . . Scan Component 1 | . . . . . 1 . . . . . . . . Repair 1 | . . . . . 1 . . . . . . . . Recycling Unit Hacks . | . . . . . . . . . . . . . . Scanalyzer . | . . . . . . . . . . . . . . Garrison Access Hacks . | . . . . . . . . . . . . . . Unauthorized Hacks 11 | . 2 . 2 . 4 . . . . 1 . . 2 Terminals 8 | . 2 . 2 . 2 . . . . . . . 2 Track 3 | . 1 . 1 . 1 . . . . . . . . Botnet 5 | . 1 . 1 . 1 . . . . . . . 2 Fabricators . | . . . . . . . . . . . . . . Repair Stations 2 | . . . . . 2 . . . . . . . . Recycling Units 1 | . . . . . . . . . . 1 . . . Tunnel 1 | . . . . . . . . . . 1 . . . Scrapoids 2 | . . . . . 2 . . . . . . . . Scanalyzers . | . . . . . . . . . . . . . . Garrison Access . | . . . . . . . . . . . . . . Data Cores Recovered . | . . . . . . . . . . . . . . Used . | . . . . . . . . . . . . . . Hacking Detections 23 | . 5 . 3 . 9 . . . . 3 . . 3 Full Trace Events 1 | . . . 1 . . . . . . . . . . Feedback Events . | . . . . . . . . . . . . . . Feedback Blocked . | . . . . . . . . . . . . . . Robot Schematics Acquired 3 | . . . . . . . . 3 . . . . . Robots Built . | . . . . . . . . . . . . . . Authchips . | . . . . . . . . . . . . . . Time . | . . . . . . . . . . . . . . Total Robot Build Rating . | . . . . . . . . . . . . . . Part Schematics Acquired 14 | . . . 1 . . . . 13 . . . . . Parts Built . | . . . . . . . . . . . . . . Authchips . | . . . . . . . . . . . . . . Time . | . . . . . . . . . . . . . . Total Part Build Rating . | . . . . . . . . . . . . . . Parts Repaired 1 | . . . . . 1 . . . . . . . . Time 19 | . . . . . 19 . . . . . . . . Parts Recycled . | . . . . . . . . . . . . . . Recycled Matter . | . . . . . . . . . . . . . . Retrieved Matter . | . . . . . . . . . . . . . . Retrieved Components . | . . . . . . . . . . . . . . Parts Scanalyzed . | . . . . . . . . . . . . . . Part Schematics Acquired . | . . . . . . . . . . . . . . Parts Damaged . | . . . . . . . . . . . . . . Bothacking | -11 -10 -10 -8 -8 -6 -6 -6 -6 -5 -5 -5 -5 -4 ------------ Run | Yrd Mat Sub Rec Scr Fac Low Low Zio Pro Fac Upp Upp Fac Used RIF Installer . | . . . . . . . . . . . . . . Robots Hacked . | . . . . . . . . . . . . . . Non-combat . | . . . . . . . . . . . . . . Combat . | . . . . . . . . . . . . . . Robot Hacks Applied . | . . . . . . . . . . . . . . Relay Couplers Released . | . . . . . . . . . . . . . . Fabnet Peak Effective % . | . . . . . . . . . . . . . . Robots Rewired 7 | . . . . . . 5 . . 2 . . . . Allies Hacked . | . . . . . . . . . . . . . . Hacks Repelled . | . . . . . . . . . . . . . . Allies | -11 -10 -10 -8 -8 -6 -6 -6 -6 -5 -5 -5 -5 -4 -------- Run | Yrd Mat Sub Rec Scr Fac Low Low Zio Pro Fac Upp Upp Fac Total Allies 24 | . . . . . 15 5 . 1 2 . . 1 . Largest Group 10 | . . . . . 10 6 5 5 6 2 . 1 . Highest-Rated Group 381 | . . . . . 381 206 154 222 250 128 . 50 . Highest-Rated Ally 99 | . . . . . 50 47 31 99 99 99 . 50 . Total Orders 4 | . . . . . 2 . . . . . . . 2 EXPLORE 4 | . . . . . 2 . . . . . . . 2 Ally Attacks 233 | . . . . . 98 6 35 . 70 24 . . . Total Damage 5672 | . . . . . 1883 125 590 . 2100 974 . . . Kills 47 | . . . . . 12 3 4 . 17 11 . . . Allies Corrupted 3 | . . . . . . 2 . . . 1 . . . Allies Melted 1 | . . . . . 1 . . . . . . . . Intel | -11 -10 -10 -8 -8 -6 -6 -6 -6 -5 -5 -5 -5 -4 ------- Run | Yrd Mat Sub Rec Scr Fac Low Low Zio Pro Fac Upp Upp Fac Robot Analysis Total 2 | . 2 . . . . . . . . . . . . Derelict Logs Recovered 8 | . . 1 . . . 2 1 1 2 . 1 . . Drone Launches 6 | . . . . . 4 . . . . . . . 2 Drone Recoveries 2 | . . . . . 2 . . . . . . . . Decoded 0b10 Intel 21 | . . . . . . . . . . 21 . . . Traps 2 | . . . . . . . . . . 2 . . . Items 18 | . . . . . . . . . . 18 . . . Guards 1 | . . . . . . . . . . 1 . . . Exploration | -11 -10 -10 -8 -8 -6 -6 -6 -6 -5 -5 -5 -5 -4 ------------- Run | Yrd Mat Sub Rec Scr Fac Low Low Zio Pro Fac Upp Upp Fac Turns Passed 14508 | 131 709 314 540 2321 1552 1155 2771 1627 1093 858 813 124 500 Spaces Moved 9142 | 43 422 165 347 1590 1038 949 1252 954 927 470 509 60 416 Core 110 | 4 . . . . . . 68 . . . . 27 11 Treads 69 | 39 28 2 . . . . . . . . . . . Legs . | . . . . . . . . . . . . . . Wheels 8675 | . 394 163 347 1590 1038 949 1184 954 927 470 509 33 117 Hover 288 | . . . . . . . . . . . . . 288 Flight . | . . . . . . . . . . . . . . Fastest Speed 50 | 50 130 135 140 140 100 90 100 70 100 90 95 50 50 Average Speed 131 | 153 133 138 140 143 118 99 205 98 100 120 153 131 74 Slowest Speed 1850 | 160 160 320 140 145 130 100 1850 100 100 260 260 260 185 Overloaded Moves . | . . . . . . . . . . . . . . Propulsion Burnouts . | . . . . . . . . . . . . . . Robots Hopped 3 | . . . . . 3 . . . . . . . . Cave-ins Triggered . | . . . . . . . . . . . . . . Exploration Rate (%) 51 | 5 58 12 62 90 24 90 97 81 91 10 67 12 21 Regions Visited 13 Branch Regions 9 Pre-discovered Areas 2 | . . . . . . . . . 1 1 . . . Known Exits Taken 3 | . . . . . 1 . . . . 1 . 1 . Unknown Exits Taken 10 | 1 1 1 1 1 . 1 1 1 1 . 1 . . Scrap Searched 22 | . . . . 6 . 3 3 1 5 . 3 1 . Spaces Dug 44 | . 2 . . . 10 . 3 . 7 12 . . 10 Terrain Destroyed 131 | . 2 . 1 . 21 11 3 . 18 59 . 6 10 Melee 38 | . . . . . 9 . 3 . 6 10 . . 10 Projectile 27 | . 2 . 1 . 1 . . . 2 19 . 2 . AOE 66 | . . . . . 11 11 . . 10 30 . 4 . Terrain Rammed . | . . . . . . . . . . . . . . Walls Destroyed . | . . . . . . . . . . . . . . Machines Disabled . | . . . . . . . . . . . . . . Actions | -11 -10 -10 -8 -8 -6 -6 -6 -6 -5 -5 -5 -5 -4 --------- Run | Yrd Mat Sub Rec Scr Fac Low Low Zio Pro Fac Upp Upp Fac Total 11144 | 79 508 208 394 1640 1240 1118 1439 1646 1061 634 537 89 551 Wait 1171 | . 31 . 37 5 35 91 140 634 82 53 2 6 55 Move 9123 | 42 421 164 346 1589 1031 948 1251 953 926 469 508 59 416 Hop 3 | . . . . . 3 . . . . . . . . Pick Up 133 | 7 8 4 4 24 21 3 11 21 4 6 11 . 9 Fast Attach 59 | 7 1 . . 2 12 2 1 1 2 8 2 1 20 Attach 70 | . 1 7 1 . 15 1 4 6 4 11 3 7 10 Detach 12 | . . . 1 . 3 . . 3 3 1 1 . . Swap 57 | 1 17 6 1 . 8 7 4 3 3 4 1 1 1 Drop 98 | . 2 2 . 20 18 5 12 23 2 . 6 2 6 Fire 260 | 22 27 25 4 . 51 24 13 1 15 57 2 13 6 Melee 105 | . . . . . 36 6 3 1 6 25 1 . 27 Ram 2 | . . . . . 1 . . . . . . . 1 Kick . | . . . . . . . . . . . . . . Crush . | . . . . . . . . . . . . . . Escape Stasis 6 | . . . . . 6 . . . . . . . . Rewire 45 | . . . . . . 31 . . 14 . . . . Trap . | . . . . . . . . . . . . . . Miscellaneous . | . . . . . . . . . . . . . . Route ------- -11/Scrapyard -10/Materials (discovered 3 exits: [*Mat x2] / [*Sub]) -10/Subcaves -8/Recycling (discovered 2 exits: *Fac / *Scr) -8/Scraptown (discovered 2 exits: *Fac x2) -6/Factory (discovered 2 exits: *Low x2) -6/Lower Caves -6/Lower Caves (discovered 2 exits: *Fac / *Zio) -6/Zion -5/Proximity Caves -5/Factory (discovered 2 exits: Fac / *Upp) -5/Upper Caves -5/Upper Caves -4/Factory (discovered 1 exit: [*Res]) History --------- Turn | Location | Event 24 | -11/Scrapyard | Discovered new exit (range 16) 132 | -11/Scrapyard | Entered Materials 317 | -10/Materials | Build established: Mutant 377 | -10/Materials | Discovered new exit (range 7) 452 | -10/Materials | Discovered new exit (range 7) 835 | -10/Materials | Discovered new exit (range 5) 841 | -10/Materials | Entered Subcaves 843 | -10/Subcaves | Learned 2 Materials zone layouts 861 | -10/Subcaves | A swath of the cavern ceiling suddenly collapsed 1029 | -10/Subcaves | Core integrity fell below 50% 1072 | -10/Subcaves | Discovered new exit (range 9) 1107 | -10/Subcaves | Core integrity fell below 20% 1143 | -10/Subcaves | Lost 6 parts (1p3n2w) 1155 | -10/Subcaves | Entered Recycling 1351 | -8/Recycling | Discovered new exit (range 18) 1661 | -8/Recycling | Scanned before Scraplab entrance 1681 | -8/Recycling | Entered Scraplab 1692 | -8/Recycling | Discovered new exit (range 2) 1695 | -8/Recycling | Entered Scraptown 1695 | -8/Scraptown | System corruption cleaned by C-Scrubber 1986 | -8/Scraptown | Visited TADAMA 2063 | -8/Scraptown | Visited Assassins FH 2093 | -8/Scraptown | Visited Cyclists 2117 | -8/Scraptown | Visited UFD Registry 2117 | -8/Scraptown | Registered with UFD as "Protorunner" 2156 | -8/Scraptown | Entered Cyclist Reading Room 2227 | -8/Scraptown | Visited Awakened 2254 | -8/Scraptown | Visited Red Mages 2313 | -8/Scraptown | Visited Shadow of the Wyrm 2325 | -8/Scraptown | Visited Fellowship of the Rings 2868 | -8/Scraptown | Discovered new exit (range 13) 3058 | -8/Scraptown | Visited Infowarlord's Domain 3082 | -8/Scraptown | Found Spectral Analyzer 3115 | -8/Scraptown | Visited LU-1G1's Boring Crew 3181 | -8/Scraptown | Visited Science Testing Area 3212 | -8/Scraptown | Visited Junk Repository 3302 | -8/Scraptown | Visited Scrapoid Pod Storage 3322 | -8/Scraptown | Visited Science Guys 3542 | -8/Scraptown | Visited Botcube Research 3551 | -8/Scraptown | Found Lrg. Botcube 3575 | -8/Scraptown | Visited Curators Association 3622 | -8/Scraptown | Visited Junk Repository 3723 | -8/Scraptown | Found Scrapoid Pod 3956 | -8/Scraptown | Found Scrap Suit 4013 | -8/Scraptown | Discovered new exit (range 3) 4016 | -8/Scraptown | Entered Factory 4016 | -6/Factory | Evolved 8 slots: Power x1, Propulsion x2, Utility x4, Weapon x1 4382 | -6/Factory | Repaired Imp. Grenade Launcher 4684 | -6/Factory | Lost 6 parts (3u3w) 5108 | -6/Factory | Scrapoid reinforcements arrived 5156 | -6/Factory | Found Scrap Suit 5189 | -6/Factory | Lost 5 allies 5198 | -6/Factory | Scrapoid Pod released 06F10-D (x5) 5210 | -6/Factory | Found Scrap Suit 5263 | -6/Factory | Identified exit to Lower Caves 5332 | -6/Factory | Scrapoids reinforcements arrived? 5447 | -6/Factory | Spotted B-75 Beast 5464 | -6/Factory | Allies destroyed B-75 Beast 5568 | -6/Factory | Entered Lower Caves 5568 | -6/Lower Caves | Accompanied by 6 allies 5578 | -6/Lower Caves | Build established: Scavenger-Scrapper 5667 | -6/Lower Caves | Encountered a Warlord checkpoint 5818 | -6/Lower Caves | Lost 6 allies 5946 | -6/Lower Caves | Attracted the attention of an 0b10 outpost 6119 | -6/Lower Caves | Discovered new exit (range 13) 6664 | -6/Lower Caves | Attacked by a delusional Derelict stockpiling Unaware 6723 | -6/Lower Caves | Entered another Lower Caves area 6723 | -6/Lower Caves | Accompanied by 5 allies 6815 | -6/Lower Caves | Discovered new exit (range 7) 7373 | -6/Lower Caves | Found Prototype Device 7395 | -6/Lower Caves | Learned Factory interactive machine intel 7510 | -6/Lower Caves | Identified Heart of Steel 7813 | -6/Lower Caves | Build established: Scavenger-Mutant 7839 | -6/Lower Caves | Learned location of 1 exit from Factory 7839 | -6/Lower Caves | Learned Research trap positions 7839 | -6/Lower Caves | Learned Extension trap positions 7839 | -6/Lower Caves | Learned Factory emergency access door positions 7839 | -6/Lower Caves | Learned Extension security intel 7839 | -6/Lower Caves | Learned Armory garrison access intel 7954 | -6/Lower Caves | Discovered new exit (range 15) 8353 | -6/Lower Caves | Build established: Scavenger-Scrapper 9494 | -6/Lower Caves | Entered Zion 9494 | -6/Zion | Accompanied by 4 allies 9577 | -6/Zion | Discovered new exit (range 17) 9652 | -6/Zion | Found Prototype Device 9660 | -6/Zion | Identified Mobile Refinery Mk. CCLXVII 9857 | -6/Zion | Heart of Steel transformed into Warbot 10207 | -6/Zion | Received a visual enhancement algorithm 11121 | -6/Zion | Entered Proximity Caves 11121 | -5/Proximity Caves | Accompanied by 5 allies (Warbot) 11205 | -5/Proximity Caves | Attracted the attention of an 0b10 outpost 11765 | -5/Proximity Caves | Learned Factory emergency access door positions 11950 | -5/Proximity Caves | Attracted the attention of an 0b10 checkpoint 12086 | -5/Proximity Caves | Found Alien Artifact 12086 | -5/Proximity Caves | Identified Dimensional Node Initializer 12086 | -5/Proximity Caves | Initialized slip node 12163 | -5/Proximity Caves | Discovered new exit (range 12) 12214 | -5/Proximity Caves | Entered Factory 12214 | -5/Factory | Accompanied by 2 allies (Warbot) 12214 | -5/Factory | Evolved 2 slots: Utility x2 12215 | -5/Factory | Identified exit to Upper Caves 12216 | -5/Factory | Identified exit to Factory 12218 | -5/Factory | Loaded intel: 54 interactive machine locations 12653 | -5/Factory | Lost 3 parts (1p2u) 12817 | -5/Factory | System corruption reached 10% 12865 | -5/Factory | Garrison activated, responded to threat 12878 | -5/Factory | Lost 9 parts (1p1n2u5w) 12902 | -5/Factory | Build established: Scavenger-Mutant 13072 | -5/Factory | Entered Upper Caves 13168 | -5/Upper Caves | Encountered a Warlord checkpoint 13479 | -5/Upper Caves | Learned Factory terminal intel 13847 | -5/Upper Caves | Discovered new exit (range 15) 13885 | -5/Upper Caves | Entered another Upper Caves area 13952 | -5/Upper Caves | Attracted the attention of an 0b10 base 13981 | -5/Upper Caves | Core integrity fell below 50% 13996 | -5/Upper Caves | Released all parts (8) 13997 | -5/Upper Caves | Lrg. Botcube activated 14005 | -5/Upper Caves | Discovered exit to Factory (range 9) 14009 | -5/Upper Caves | Entered Factory 14009 | -4/Factory | Evolved 2 slots: Propulsion x1, Utility x1 14011 | -4/Factory | Loaded intel: 26 terminal locations 14025 | -4/Factory | Lost 14 parts (3p3n4u4w) 14085 | -4/Factory | Found Quantum Capacitor 14229 | -4/Factory | Discovered new exit (range 31) 14250 | -4/Factory | Build established: Mutant 14347 | -4/Factory | Lost 3 parts (1n2u) 14383 | -4/Factory | Found Prototype Processor 14383 | -4/Factory | Identified Exp. Targeting Computer 14509 | -4/Factory | Self-destructed Last Messages --------------- 14473_ Destroyed VTOL Module. 14473_ S-27 Virus system corrupted by crushing effect. 14474_ S-27 Virus system terminally corrupted. 14474_ Lgt. Nuclear Core fried. 14476_ S-27 Virus knocked back. 14477_ R-10 Processor collects Corrupted Autogun. 14479_ Lgt. Antimatter Reactor destroyed. 14481_ Mic. Nuclear Core destroyed. 14483_ Imp. Antigrav System destroyed. 14485_ Destroyed VTOL Module. 14485_ S-27 Virus system corrupted by crushing effect. 14486_ S-27 Virus misfires. 14488_ Destroyed Autogun. 14488_ Destroyed Lgt. Nuclear Core. 14488_ S-27 Virus system corrupted by crushing effect. 14488_ Hvy. Mace destroyed. 14489_ S-27 Virus system terminally corrupted. 14501_ Acquired Imp. Gyrokinetic Inverter. 14506_ Slammed into S-27 Virus. 14509_ ALERT: Rogue bot located, Programmers report to Factory Zone 3Z. Map ----- +----------------------------------------------------+ | ?????????????????????????????????????????????????? | | ?????????????????????????????????????????????????? | | ?????????????????????????????????????????????????? | | ?????????????????????????????????????????????????? | | ?????????????????????????????????????????????????? | | ?????????????????????????????????????????????????? | | ?????????????????????????????????????????????????? | | ?????????????????????????????????????????????????? | | ????????????????????????????????????????###+#####? | | "T"?????????????????????????????????????# #? | | """?????????????????????????????????????# ""#? | | ???+????????????????????????????????????# ! ""#? | | ????????????????????????????????????????# G## | | ???????????????????????????##############! ""# | | ???????????????????????????# " ""# | | ???????????????????????????# " # | | ???????????????????????????# """" " / | | ???????????????????????????# """" = # | | ???????????????????????????# """" | | ???????????????????????????# """" # | | ???????????????????????????# ## | | ???????????????????????????# | | ???????????????????????????# """ | | ???????????????????????????# "R | | ??????????????????????# ####s"""g # | | ??????????????????????+ @ /s ; | | ??????????????????????# #######+###"" % | | ??????????????????????# #???# %/ # # | | ??????????????????????# #???# # % ## | | ??????????????????????# #???# # ### | | ??????????????????????# #???# %/% /%* #?# | | ??????????????????????# # #?# | | ??????????????????????####### # #?# | | ????????????????????????????#+## # ! #?# | | ???????????????????????????????# # #?# | | ???????????????????????????????# ###########?? | | ???????????????????????????????# #???????????? | | ???????????????????????????????# #???????????? | | ???????????????????????????????# #???????????? | | ???????????????????????????????# #???????????? | | ???????????????????????????????# #???????????? | | ???????????????????????????????# ????????????? | | ???????????????????????????????# ????????????? | | ???????????????????????????????? ????????????? | | ?????????????????????????????????? ????????????? | | ?????????????????????????????????????????????????? | | ????????????????"????????????????????????????????? | | ????????????????T????????????????????????????????? | | ????????????????"?????????????????????????????? | | ??????????????????????????????????????????????? | +----------------------------------------------------+ Best States ------------- Heat Dissipation 97 Energy Generation 31 Energy Capacity 370 Matter Stores 300 Matter Capacity 300 Sight Range 24 Robot Scan Range 16 Terrain Scan Density 10 Armor Coverage 700 Resistance: TH 20 Resistance: EM 15 Evasion (%) 54 Targeting Accuracy 12 Melee Accuracy 38 Recoil Reduction 2 Salvage Targeting 4 Item Schematics ----------------- Hacking Suite | -8/Recycling | Hacked Focal Shield | -6/Zion | Archive Imp. Coolant Injector | -6/Zion | Archive Adv. Terrain Scanner | -6/Zion | Archive Hvy. Phase Cannon | -6/Zion | Archive Fusion Compressor | -6/Zion | Archive Lance | -6/Zion | Archive Imp. Particle Charger | -6/Zion | Archive Antimatter Reactor | -6/Zion | Archive Imp. Armor Integrity Analyzer | -6/Zion | Archive Hvy. Mass Driver | -6/Zion | Archive Imp. Recalibrator | -6/Zion | Archive Hvy. Plasma Cannon | -6/Zion | Archive System Guard | -6/Zion | Archive Robot Schematics ------------------ G-47 Trooper | -6/Zion | Archive K-01 Serf | -6/Zion | Archive R-06 Scavenger | -6/Zion | Archive Fabricated ------------ Nothing Alien Tech Used ----------------- Dimensional Node Initializer Achievements -------------- None Challenges ------------ None Game ------ Seed SpikedBurstTendrils Manual? 0 Play Time 02:15:28 Cumulative 387.6 hours Start 2025.01.05 @ 13:24:12 End 2025.01.05 @ 19:44:56 Sessions 3 Manual Loads 0 Difficulty Rogue Special Mode None Game No. 166 Rogue 166 Adventurer 0 Explorer 0 Win Type - Total 13 Types 11/0/1/1/0/0/0/0/0 Lore% 69 Gallery% 79 Achievement% 67 Wizard Run 0 Options --------- Layout 0 ASCII 0 Keyboard 0 Movement Numpad Keybinds 0 Fullscreen 1 Font 24/Smallcaps Map View 76x50 Zoom Use 0% Tactical HUD 1 Map Filters NONE Filters NONE Steam 1 RUN: 674a4972-88cb-449e-8fd1-756e39d71c62